bitfinex/quotes_BTCUSD_20240721
["timestamp","ask_amount","ask_price","bid_price","bid_amount"]
[1721545042056,1.3226237,66832.0,66831.0,0.000924]
[1721545042256,1.58427816,66832.0,66831.0,0.000924]
[1721545042463,1.47303584,66832.0,66831.0,0.000924]
[1721545043329,1.5843621,66832.0,66831.0,0.000924]
[1721545043480,1.47303584,66832.0,66831.0,0.000924]
[1721545043888,1.47200238,66832.0,66831.0,0.000924]
[1721545046969,1.47092347,66832.0,66831.0,0.000924]
[1721545048420,1.48006171,66832.0,66831.0,0.000924]
[1721545050212,1.48011498,66832.0,66831.0,0.000924]
[1721545050544,1.48011124,66832.0,66831.0,0.000924]
[1721545050878,1.43320664,66832.0,66831.0,0.000924]
[1721545051103,1.59141228,66832.0,66831.0,0.000924]
[1721545051305,1.52320664,66832.0,66831.0,0.000924]
[1721545051505,1.59141017,66832.0,66831.0,0.000924]
[1721545051980,1.52320664,66832.0,66831.0,0.000924]
[1721545053223,1.37120461,66832.0,66831.0,0.000924]
[1721545053427,1.59135736,66832.0,66831.0,0.000924]
[1721545053851,1.41188115,66832.0,66831.0,0.000924]
[1721545054408,1.52315632,66832.0,66831.0,0.000924]
[1721545054607,1.39007964,66832.0,66831.0,0.000924]
[1721545054831,1.48007964,66832.0,66831.0,0.000924]
[1721545055811,1.47607964,66832.0,66831.0,0.000924]
[1721545056014,1.48107964,66832.0,66831.0,0.001924]
[1721545056415,1.47707219,66832.0,66831.0,0.001924]
[1721545056627,1.47707219,66832.0,66831.0,0.000924]
[1721545056628,1.47207219,66832.0,66831.0,0.000924]
[1721545056878,1.47207006,66832.0,66831.0,0.000924]
[1721545057103,1.47107006,66832.0,66831.0,0.000924]
[1721545057298,1.47107006,66832.0,66831.0,0.001924]
[1721545057299,1.47407006,66832.0,66831.0,0.001924]
[1721545057671,1.3871071,66832.0,66831.0,0.000924]
[1721545057871,1.3961071,66832.0,66831.0,0.002924]
[1721545058095,1.3991071,66832.0,66831.0,0.002924]
[1721545058900,1.55345667,66832.0,66831.0,0.002924]
[1721545059480,1.51678971,66832.0,66831.0,0.002924]
[1721545059686,1.55462554,66832.0,66831.0,0.002924]
[1721545060421,1.62272554,66832.0,66831.0,0.002924]
[1721545061974,1.62272554,66832.0,66831.0,0.002964]
[1721545062172,1.31027597,66832.0,66831.0,0.002964]
[1721545062375,1.00544313,66832.0,66831.0,0.002964]
[1721545062594,0.93724464,66832.0,66831.0,0.002964]
[1721545062782,0.87717165,66832.0,66831.0,0.002964]
[1721545063014,0.39835968,66832.0,66831.0,0.002964]
[1721545063216,0.06130067,66832.0,66831.0,0.002964]
[1721545063416,0.06130067,66832.0,66831.0,0.025964]
[1721545063620,0.01284,66832.0,66831.0,0.03804432]
[1721545064136,0.00384,66832.0,66831.0,0.03704432]
[1721545064337,0.00084,66832.0,66831.0,0.03604432]
[1721545064535,0.00384,66832.0,66831.0,0.03604432]
[1721545065390,0.01684,66832.0,66831.0,0.03704432]
[1721545065586,0.06530067,66832.0,66831.0,0.03704432]
[1721545066280,0.06530067,66832.0,66831.0,0.024964]
[1721545066281,0.18500367,66832.0,66831.0,0.024964]
[1721545066491,0.64649968,66832.0,66831.0,0.001924]
[1721545067363,0.56450967,66832.0,66831.0,0.001924]
[1721545067567,0.8483966,66832.0,66831.0,0.001924]
[1721545067766,0.80391567,66832.0,66831.0,0.001924]
[1721545067913,0.8483966,66832.0,66831.0,0.001924]
[1721545068899,0.8483921,66832.0,66831.0,0.001924]
[1721545071915,0.2498771,66832.0,66831.0,0.001924]
[1721545072121,0.2498771,66832.0,66831.0,0.01097426]
[1721545072122,0.20540067,66832.0,66831.0,0.01097426]
[1721545072529,0.32510367,66832.0,66831.0,0.01097426]
[1721545072890,0.32506367,66832.0,66831.0,0.01097426]
[1721545073094,0.36954541,66832.0,66831.0,0.01097426]
[1721545074371,0.60895141,66832.0,66831.0,0.01097426]
[1721545074533,0.60895141,66832.0,66831.0,0.001924]
[1721545075147,0.60895587,66832.0,66831.0,0.001924]
[1721545076169,0.56446967,66832.0,66831.0,0.001924]
[1721545076578,0.60895925,66832.0,66831.0,0.001924]
[1721545078267,0.6089619,66832.0,66831.0,0.001924]
[1721545079214,0.56446967,66832.0,66831.0,0.001924]
[1721545080627,0.80387567,66832.0,66831.0,0.001924]
[1721545080830,1.44753805,66832.0,66831.0,0.001924]
[1721545080979,1.35899485,66832.0,66831.0,0.001924]
[1721545081603,1.69280147,66832.0,66831.0,0.001924]
[1721545081764,1.58156572,66832.0,66831.0,0.001924]
[1721545083395,1.57757612,66832.0,66831.0,0.001924]
[1721545083796,1.53972592,66832.0,66831.0,0.001924]
[1721545084023,1.48821316,66832.0,66831.0,0.001924]
[1721545084235,1.39433978,66832.0,66831.0,0.001924]
[1721545086241,0.24963704,66832.0,66831.0,0.001924]
[1721545086444,0.30115091,66832.0,66831.0,0.001924]
[1721545086674,0.3901421,66832.0,66831.0,0.001924]
[1721545087016,0.26266367,66832.0,66831.0,0.001924]
[1721545087247,0.39409871,66832.0,66831.0,0.01098168]
[1721545087453,0.39409871,66832.0,66831.0,0.001924]
[1721545087454,0.31639871,66832.0,66831.0,0.001924]
[1721545087661,0.31639871,66832.0,66831.0,0.01098168]
[1721545087858,0.25166594,66832.0,66831.0,0.001924]
[1721545088294,0.13196294,66832.0,66831.0,0.001924]
[1721545088504,0.13196294,66832.0,66831.0,0.121628]
[1721545088505,0.06126878,66832.0,66831.0,0.121628]
[1721545088722,0.0168,66832.0,66831.0,0.37311391]
[1721545088926,0.0168,66832.0,66831.0,0.39611391]
[1721545089337,0.06526067,66832.0,66831.0,0.39611391]
[1721545090165,0.06526067,66832.0,66831.0,0.03397698]
[1721545090587,0.4762626,66832.0,66831.0,0.01097698]
[1721545090801,0.56966845,66832.0,66831.0,0.01097698]
[1721545091013,0.56966845,66832.0,66831.0,0.001924]
[1721545092257,0.56941845,66832.0,66831.0,0.001924]
[1721545093370,0.50271967,66832.0,66831.0,0.001924]
[1721545093575,0.56940967,66832.0,66831.0,0.001924]
[1721545093992,0.63300967,66832.0,66831.0,0.001924]
[1721545095780,0.56631967,66832.0,66831.0,0.001924]
[1721545095984,0.63300967,66832.0,66831.0,0.001924]
[1721545096371,0.56631967,66832.0,66831.0,0.001924]
[1721545096604,0.63300967,66832.0,66831.0,0.001924]
[1721545097605,0.56631967,66832.0,66831.0,0.001924]
[1721545098070,0.63300967,66832.0,66831.0,0.001924]
[1721545099770,0.63301479,66832.0,66831.0,0.001924]
[1721545101352,0.56631967,66832.0,66831.0,0.001924]
[1721545103231,0.60890144,66832.0,66831.0,0.001924]
[1721545103685,0.46670144,66832.0,66831.0,0.001924]
[1721545103887,0.42411967,66832.0,66831.0,0.001924]
[1721545104294,0.46692586,66832.0,66831.0,0.001924]
[1721545106153,0.46689933,66832.0,66831.0,0.001924]
[1721545106338,0.55588729,66832.0,66831.0,0.001924]
[1721545107372,0.42411967,66832.0,66831.0,0.001924]
[1721545108073,0.55584286,66832.0,66831.0,0.001924]
[1721545109650,0.31643686,66832.0,66831.0,0.001924]
[1721545112600,0.2274489,66832.0,66831.0,0.001924]
[1721545113157,0.3164619,66832.0,66831.0,0.001924]
[1721545113531,0.31646229,66832.0,66831.0,0.001924]
[1721545113736,0.2274489,66832.0,66831.0,0.001924]
[1721545115736,0.22757523,66832.0,66831.0,0.001924]
[1721545116141,0.39548572,66832.0,66831.0,0.001924]
[1721545116343,0.37037523,66832.0,66831.0,0.001924]
[1721545117505,0.60978123,66832.0,66831.0,0.001924]
[1721545118061,0.96481854,66832.0,66831.0,0.001924]
[1721545118271,1.6911233,66832.0,66831.0,0.001924]
[1721545118439,1.5798616,66832.0,66831.0,0.001924]
[1721545118866,1.57760484,66832.0,66831.0,0.001924]
[1721545119924,1.46694927,66832.0,66831.0,0.001924]
[1721545121315,1.37694927,66832.0,66831.0,0.001924]
[1721545121849,1.38573054,66832.0,66831.0,0.001924]
[1721545122048,1.3863426,66832.0,66831.0,0.001924]
[1721545122255,1.34512574,66832.0,66831.0,0.001924]
[1721545122458,1.31826865,66832.0,66831.0,0.001924]
[1721545122859,1.63071822,66832.0,66831.0,0.001924]
[1721545125286,1.62912144,66832.0,66831.0,0.001924]
[1721545127856,1.53912144,66832.0,66831.0,0.001924]
[1721545128288,1.49947531,66832.0,66831.0,0.001924]
[1721545128507,1.53874058,66832.0,66831.0,0.001924]
[1721545128727,1.62874058,66832.0,66831.0,0.001924]
[1721545131610,1.62798285,66832.0,66831.0,0.001924]
[1721545132902,1.86738885,66832.0,66831.0,0.001924]
[1721545133100,1.38363328,66832.0,66831.0,0.001924]
[1721545134697,1.384166,66832.0,66831.0,0.001924]
[1721545137983,1.33553588,66832.0,66831.0,0.001924]
[1721545141389,1.38399655,66832.0,66831.0,0.001924]
[1721545142202,1.33553588,66832.0,66831.0,0.001924]
[1721545143083,1.38399655,66832.0,66831.0,0.001924]
[1721545143468,1.29666507,66832.0,66831.0,0.001924]
[1721545143669,1.33595278,66832.0,66831.0,0.001924]
[1721545143876,1.33594845,66832.0,66831.0,0.001924]
[1721545144082,1.38440912,66832.0,66831.0,0.001924]
[1721545146160,0.30090938,66832.0,66831.0,0.001924]
[1721545146335,0.23277832,66832.0,66831.0,0.001924]
[1721545146516,0.54031683,66832.0,66831.0,0.001924]
[1721545146722,0.56547992,66832.0,66831.0,0.001924]
[1721545146929,0.32607392,66832.0,66831.0,0.00988889]
[1721545147332,0.23711671,66832.0,66831.0,0.00988889]
[1721545148604,0.47652271,66832.0,66831.0,0.00988889]
[1721545149460,0.57602435,66832.0,66831.0,0.00988889]
[1721545149835,0.53240258,66832.0,66831.0,0.001924]
[1721545150064,0.57671026,66832.0,66831.0,0.001924]
[1721545153161,0.57660958,66832.0,66831.0,0.001924]
[1721545154194,0.66556444,66832.0,66831.0,0.001924]
[1721545154620,0.57660958,66832.0,66831.0,0.001924]
[1721545155006,0.66556444,66832.0,66831.0,0.001924]
[1721545156021,0.65230958,66832.0,66831.0,0.001924]
[1721545156228,0.60810258,66832.0,66831.0,0.001924]
[1721545156422,0.6512329,66832.0,66831.0,0.001924]
[1721545156768,0.74019186,66832.0,66831.0,0.001924]
[1721545157302,0.6512329,66832.0,66831.0,0.001924]
[1721545158595,0.8906389,66832.0,66831.0,0.001924]
[1721545159622,0.89088628,66832.0,66831.0,0.001924]
[1721545161257,0.95398628,66832.0,66831.0,0.001924]
[1721545162457,1.06518787,66832.0,66831.0,0.001924]
[1721545162661,1.06452265,66832.0,66831.0,0.001924]
[1721545165957,1.06454269,66832.0,66831.0,0.001924]
[1721545166519,0.96504105,66832.0,66831.0,0.001924]
[1721545166672,0.85383538,66832.0,66831.0,0.001924]
[1721545168068,0.96504105,66832.0,66831.0,0.001924]
[1721545169073,0.96511913,66832.0,66831.0,0.001924]
[1721545169581,1.03323282,66832.0,66831.0,0.001924]
[1721545170673,1.02544132,66832.0,66831.0,0.001924]
[1721545171194,1.11544132,66832.0,66831.0,0.001924]
[1721545172382,1.02279091,66832.0,66831.0,0.001924]
[1721545172545,1.11279091,66832.0,66831.0,0.001924]
[1721545172889,1.02279091,66832.0,66831.0,0.001924]
[1721545173178,1.26219691,66832.0,66831.0,0.001924]
[1721545173747,1.15878963,66832.0,66831.0,0.001924]
[1721545175503,1.15991848,66832.0,66831.0,0.001924]
[1721545176952,0.78171248,66832.0,66831.0,0.001924]
[1721545177260,0.89290068,66832.0,66831.0,0.001924]
[1721545178604,0.894086,66832.0,66831.0,0.001924]
[1721545180222,0.78289104,66832.0,66831.0,0.001924]
[1721545180669,0.894091,66832.0,66831.0,0.001924]
[1721545180869,0.78289104,66832.0,66831.0,0.001924]
[1721545181374,0.78289252,66832.0,66831.0,0.001924]
[1721545181827,0.74042211,66832.0,66831.0,0.001924]
[1721545182080,0.78452918,66832.0,66831.0,0.001924]
[1721545182277,0.89092459,66832.0,66831.0,0.001924]
[1721545184463,0.88995777,66832.0,66831.0,0.001924]
[1721545184886,0.78356236,66832.0,66831.0,0.001924]
[1721545185116,0.7835017,66832.0,66831.0,0.001924]
[1721545187210,0.89471246,66832.0,66831.0,0.001924]
[1721545187801,0.7835017,66832.0,66831.0,0.001924]
[1721545188206,0.78362961,66832.0,66831.0,0.001924]
[1721545189366,0.89485277,66832.0,66831.0,0.001924]
[1721545191346,0.89474593,66832.0,66831.0,0.001924]
[1721545194033,0.23898899,66832.0,66831.0,0.001924]
[1721545194202,0.05963441,66832.0,66831.0,0.17955225]
[1721545194601,0.05963441,66832.0,66831.0,0.20255225]
[1721545194602,0.01655,66832.0,66831.0,0.20255225]
[1721545196272,0.08330272,66832.0,66831.0,0.20255225]
[1721545196961,0.08330272,66832.0,66831.0,0.15715225]
[1721545197456,0.13176339,66832.0,66831.0,0.15715225]
[1721545197674,0.13176034,66832.0,66831.0,0.15715073]
[1721545198197,0.31348599,66832.0,66831.0,0.00988912]
[1721545198418,0.31348599,66832.0,66831.0,0.001924]
[1721545198419,0.83525909,66832.0,66831.0,0.001924]
[1721545198632,0.94650855,66832.0,66831.0,0.001924]
[1721545198827,1.01461122,66832.0,66831.0,0.001924]
[1721545199644,1.14721122,66832.0,66831.0,0.001924]
[1721545200058,0.99300066,66832.0,66831.0,0.001924]
[1721545200261,1.0779149,66832.0,66831.0,0.001924]
[1721545200629,0.92489799,66832.0,66831.0,0.001924]
[1721545200908,1.65120794,66832.0,66831.0,0.001924]
[1721545201119,2.39657961,66832.0,66831.0,0.001924]
[1721545201315,0.119749,66806.0,66805.0,0.483896]
[1721545201516,0.119749,66806.0,66805.0,0.1334908]
[1721545201517,0.04846067,66806.0,66805.0,0.1334908]
[1721545201717,0.16820967,66806.0,66805.0,0.18319439]
[1721545201871,0.16820967,66806.0,66805.0,0.1334908]
[1721545202071,0.16820967,66806.0,66805.0,0.009196]
[1721545202072,0.71530767,66806.0,66805.0,0.009196]
[1721545202300,0.78195653,66806.0,66805.0,0.009196]
[1721545202472,0.71530767,66806.0,66805.0,0.009196]
[1721545202973,0.77980767,66806.0,66805.0,0.009196]
[1721545203173,0.82424092,66806.0,66805.0,0.009196]
[1721545203383,0.71170767,66806.0,66805.0,0.009196]
[1721545203791,0.78690767,66806.0,66805.0,0.009196]
[1721545204388,0.78790767,66806.0,66805.0,0.011196]
[1721545204582,0.78790767,66806.0,66805.0,0.025196]
[1721545204583,0.78890767,66806.0,66805.0,0.025196]
[1721545204785,0.91737652,66806.0,66805.0,0.025196]
[1721545205004,0.91637652,66806.0,66805.0,0.011196]
[1721545205211,0.92237652,66806.0,66805.0,0.011196]
[1721545205412,0.92137652,66806.0,66805.0,0.009196]
[1721545205828,0.92737652,66806.0,66805.0,0.009196]
[1721545207009,0.99547652,66806.0,66805.0,0.009196]
[1721545208155,1.23497552,66806.0,66805.0,0.009196]
[1721545210674,1.058046,66806.0,66805.0,0.009196]
[1721545210847,1.03840667,66806.0,66805.0,0.009196]
[1721545211256,1.10650667,66806.0,66805.0,0.009196]
[1721545213528,1.26088841,66806.0,66805.0,0.009196]
[1721545213938,1.35088841,66806.0,66805.0,0.009196]
[1721545214140,1.50523798,66806.0,66805.0,0.009196]
[1721545214785,1.49923798,66806.0,66805.0,0.009196]
[1721545215210,1.49323798,66806.0,66805.0,0.009196]
[1721545215640,1.74573698,66806.0,66805.0,0.010196]
[1721545216653,1.73873698,66806.0,66805.0,0.009196]
[1721545217032,1.73873698,66806.0,66805.0,0.010196]
[1721545217033,1.65273698,66806.0,66805.0,0.010196]
[1721545217231,1.03640667,66806.0,66805.0,0.010196]
[1721545217640,1.02640667,66806.0,66805.0,0.009196]
[1721545217845,1.04440667,66806.0,66805.0,0.010196]
[1721545218279,1.03840667,66806.0,66805.0,0.009196]
[1721545218453,0.79890767,66806.0,66805.0,0.009196]
[1721545218656,0.79890767,66806.0,66805.0,0.010196]
[1721545218657,0.74040767,66806.0,66805.0,0.010196]
[1721545219823,0.82141645,66806.0,66805.0,0.010196]
[1721545219937,0.018,66806.0,66805.0,0.055596]
[1721545220156,0.06646067,66806.0,66805.0,0.13083244]
[1721545220359,0.06646067,66806.0,66805.0,0.01733244]
[1721545220997,0.05446067,66806.0,66805.0,0.01733244]
[1721545221470,0.06646067,66806.0,66805.0,0.01733244]
[1721545221870,0.18120967,66806.0,66805.0,0.01633244]
[1721545222904,0.16920967,66806.0,66805.0,0.01633244]
[1721545223118,0.59257844,66806.0,66805.0,0.01633244]
[1721545223326,0.59357844,66806.0,66805.0,0.009196]
[1721545223815,0.83107744,66806.0,66805.0,0.009196]
[1721545223999,0.83207744,66806.0,66805.0,0.009196]
[1721545226796,1.07157644,66806.0,66805.0,0.009196]
[1721545232931,1.38405818,66806.0,66805.0,0.009196]
[1721545233291,1.69179898,66806.0,66805.0,0.009196]
[1721545233876,1.69079898,66806.0,66805.0,0.009196]
[1721545234119,1.69975809,66806.0,66805.0,0.009196]
[1721545234325,1.70975809,66806.0,66805.0,0.010196]
[1721545234734,1.70975809,66806.0,66805.0,0.011196]
[1721545234735,1.71575809,66806.0,66805.0,0.011196]
[1721545235145,1.87345809,66806.0,66805.0,0.011196]
[1721545235399,1.91745809,66806.0,66805.0,0.010196]
[1721545235601,1.82345809,66806.0,66805.0,0.010196]
[1721545235806,1.91345809,66806.0,66805.0,0.010196]
[1721545236032,1.92545809,66806.0,66805.0,0.010196]
[1721545238322,1.96978179,66806.0,66805.0,0.010196]
[1721545240193,1.92545809,66806.0,66805.0,0.010196]
[1721545242233,2.03054865,66806.0,66805.0,0.010196]
[1721545242435,2.08054865,66806.0,66805.0,0.010196]
[1721545242651,0.16822067,66800.0,66799.0,0.009196]
[1721545242874,1.006839,66800.0,66799.0,0.009196]
[1721545243084,1.02322343,66800.0,66799.0,0.009196]
[1721545243465,2.11044728,66800.0,66799.0,0.009196]
[1721545243774,2.11053199,66800.0,66799.0,0.009196]
[1721545243990,2.17590518,66800.0,66799.0,0.009196]
[1721545244195,2.06486758,66800.0,66799.0,0.009196]
[1721545245018,2.06986758,66800.0,66799.0,0.009196]
[1721545245453,2.07486758,66800.0,66799.0,0.009196]
[1721545246067,2.08386758,66800.0,66799.0,0.009196]
[1721545246269,2.02886758,66800.0,66799.0,0.009196]
[1721545246473,1.97886758,66800.0,66799.0,0.009196]
[1721545246676,1.75199279,66800.0,66799.0,0.010196]
[1721545247094,1.75201287,66800.0,66799.0,0.010196]
[1721545247517,1.75201287,66800.0,66788.0,0.009196]
[1721545247518,1.02810667,66790.0,66788.0,0.009196]
[1721545247719,1.74197647,66790.0,66788.0,0.009196]
[1721545247947,1.84197647,66790.0,66788.0,0.009196]
[1721545248779,1.84197647,66790.0,66789.0,0.030196]
[1721545248999,1.85297647,66790.0,66789.0,0.030196]
[1721545249196,2.01932604,66790.0,66789.0,0.030196]
[1721545251370,2.13036769,66790.0,66789.0,0.030196]
[1721545252059,2.18036769,66790.0,66789.0,0.030196]
[1721545252472,2.62762369,66790.0,66789.0,0.030196]
[1721545252672,2.50016657,66790.0,66789.0,0.030196]
[1721545254725,2.50919536,66790.0,66789.0,0.030196]
[1721545255776,2.45919536,66790.0,66789.0,0.030196]
[1721545255980,1.82326481,66790.0,66789.0,0.030196]
[1721545256209,1.780415,66790.0,66789.0,0.030196]
[1721545256415,1.690415,66790.0,66789.0,0.030196]
[1721545256619,1.79554681,66790.0,66789.0,0.030196]
[1721545257250,1.09230907,66790.0,66789.0,0.030196]
[1721545257460,0.96331367,66790.0,66789.0,0.030196]
[1721545257667,0.67035067,66790.0,66789.0,0.030196]
[1721545260989,0.76224437,66790.0,66789.0,0.030196]
[1721545262222,0.83864437,66790.0,66789.0,0.030196]
[1721545263459,0.92864437,66790.0,66789.0,0.030196]
[1721545263661,0.92864437,66790.0,66789.0,0.075596]
[1721545263662,0.67035067,66790.0,66789.0,0.075596]
[1721545264282,0.67035067,66790.0,66789.0,0.030196]
[1721545265030,1.21908841,66790.0,66789.0,0.030196]
[1721545265237,1.29548841,66790.0,66789.0,0.030196]
[1721545265437,1.44983798,66790.0,66789.0,0.030196]
[1721545265887,1.54983798,66790.0,66789.0,0.030196]
[1721545266092,0.359404,66777.0,66776.0,0.01621796]
[1721545266315,0.40786467,66777.0,66776.0,0.01621796]
[1721545266490,0.35941,66776.0,66775.0,0.0454]
[1721545266689,0.40787067,66776.0,66775.0,0.0454]
[1721545267105,0.16827067,66772.0,66771.0,0.0474]
[1721545267308,0.40789167,66772.0,66771.0,0.0474]
[1721545267466,0.64751267,66772.0,66771.0,0.0474]
[1721545267848,0.40789167,66772.0,66771.0,0.0474]
[1721545269172,0.40889167,66772.0,66771.0,0.0484]
[1721545269399,0.69120856,66772.0,66771.0,0.003]
[1721545271508,0.69220856,66772.0,66771.0,0.01]
[1721545274392,0.93182956,66772.0,66771.0,0.01]
[1721545275300,1.01332956,66772.0,66771.0,0.01]
[1721545276270,1.01232956,66772.0,66771.0,0.003]
[1721545276676,1.01132956,66772.0,66771.0,0.004]
[1721545276911,1.01132956,66772.0,66771.0,0.002]
[1721545277254,1.01132956,66772.0,66771.0,0.003]
[1721545277434,1.01132956,66772.0,66771.0,0.003924]
[1721545277435,1.10432956,66772.0,66771.0,0.003924]
[1721545277637,1.10432956,66772.0,66771.0,0.002924]
[1721545277790,1.10832956,66772.0,66771.0,0.002924]
[1721545278516,1.01832956,66772.0,66771.0,0.002924]
[1721545282146,1.3921113,66772.0,66771.0,0.002924]
[1721545282392,1.80007251,66772.0,66771.0,0.002924]
[1721545282681,1.91110688,66772.0,66771.0,0.002924]
[1721545283249,1.79707251,66772.0,66771.0,0.002924]
[1721545283439,1.89686709,66772.0,66771.0,0.003924]
[1721545283711,2.34018809,66772.0,66771.0,0.003924]
[1721545283922,0.88722167,66765.0,66764.0,0.009196]
[1721545284202,2.01905577,66765.0,66764.0,0.009196]
[1721545284447,2.04125773,66765.0,66764.0,0.009196]
[1721545284702,1.76308962,66765.0,66764.0,0.009196]
[1721545284952,1.59218962,66765.0,66764.0,0.009196]
[1721545285200,1.65693669,66765.0,66764.0,0.009196]
[1721545285440,1.83566988,66765.0,66764.0,0.009196]
[1721545286398,1.76093669,66765.0,66764.0,0.009196]
[1721545286639,0.119857,66746.0,66745.0,0.0145]
[1721545286871,0.119857,66746.0,66745.0,0.04493126]
[1721545287629,0.119857,66746.0,66745.0,0.0375]
[1721545287899,0.40805367,66742.0,66740.0,0.000502]
[1721545288156,0.40805367,66742.0,66738.0,0.023]
[1721545288157,0.119867,66741.0,66738.0,0.023]
[1721545288422,0.122663,66740.0,66738.0,0.023]
[1721545288686,0.17112367,66740.0,66738.0,0.023]
[1721545288936,0.17112367,66740.0,66738.0,0.018]
[1721545288937,0.16612367,66740.0,66738.0,0.018]
[1721545289655,0.119869,66739.0,66738.0,0.018]
[1721545290134,0.001,66740.0,66738.0,0.022]
[1721545290381,0.001,66742.0,66741.0,0.119866]
[1721545290619,0.119852,66749.0,66741.0,0.02609624]
[1721545290953,0.119855,66747.0,66742.0,0.119864]
[1721545291227,0.119855,66747.0,66741.0,0.0231]
[1721545291228,0.239704,66749.0,66743.0,0.023]
[1721545291502,0.04846067,66748.0,66743.0,0.023]
[1721545291746,0.04846067,66748.0,66741.0,0.142964]
[1721545291747,0.119857,66746.0,66742.0,0.023]
[1721545293182,0.04846067,66744.0,66742.0,0.023]
[1721545293676,0.22991767,66746.0,66742.0,0.023]
[1721545293920,0.30947944,66746.0,66742.0,0.023]
[1721545294411,0.04846067,66744.0,66742.0,0.023]
[1721545294684,0.14116177,66746.0,66742.0,0.023]
[1721545294685,0.04846067,66743.0,66742.0,0.023]
[1721545294971,0.19941977,66746.0,66742.0,0.025]
[1721545295247,0.28816967,66748.0,66742.0,0.025]
[1721545295467,0.119855,66747.0,66743.0,0.0231]
[1721545295958,0.002,66746.0,66744.0,0.00745214]
[1721545297434,0.002,66746.0,66744.0,0.12731214]
[1721545297680,0.002,66746.0,66744.0,0.00745214]
[1721545297930,0.04846067,66747.0,66742.0,0.023]
[1721545298173,0.003,66747.0,66741.0,0.023]
[1721545298419,0.003,66747.0,66743.0,0.119861]
[1721545298625,0.04846067,66746.0,66744.0,0.023]
[1721545298824,0.04846067,66746.0,66744.0,0.03045214]
[1721545299077,0.04846067,66745.0,66744.0,0.03045214]
[1721545299318,0.077623,66745.0,66744.0,0.00745214]
[1721545299606,0.139223,66745.0,66744.0,0.00745214]
[1721545299853,0.04846067,66744.0,66741.0,0.119865]
[1721545300094,0.04846067,66744.0,66742.0,0.023]
[1721545300597,0.0616,66745.0,66742.0,0.023]
[1721545300836,0.22991867,66746.0,66742.0,0.142864]
[1721545301072,0.0616,66746.0,66742.0,0.142864]
[1721545301309,0.23737155,66768.0,66742.0,0.142864]
[1721545301310,0.001,66744.0,66743.0,0.359587]
[1721545301553,0.09754635,66752.0,66743.0,0.405687]
[1721545301792,0.11985,66750.0,66745.0,0.119858]
[1721545302026,0.16831067,66750.0,66745.0,0.119858]
[1721545302800,0.04846067,66749.0,66743.0,0.405686]
[1721545303045,0.04846067,66748.0,66744.0,0.025794]
[1721545303291,0.04846067,66747.0,66744.0,0.023]
[1721545303557,0.04846067,66748.0,66744.0,0.023]
[1721545304060,0.16831367,66748.0,66744.0,0.023]
[1721545304327,0.16831367,66748.0,66745.0,0.002794]
[1721545304551,0.16831367,66748.0,66744.0,0.024]
[1721545304813,0.04846067,66747.0,66744.0,0.024]
[1721545305319,0.04946067,66748.0,66744.0,0.023]
[1721545305567,0.16831467,66748.0,66745.0,0.001]
[1721545305772,0.119854,66748.0,66746.0,0.0074414]
[1721545306626,0.16831467,66748.0,66747.0,0.023]
[1721545306835,0.119854,66748.0,66747.0,0.023]
[1721545307072,0.16831467,66748.0,66747.0,0.023]
[1721545307326,0.16831467,66748.0,66744.0,0.023]
[1721545307566,0.16831467,66748.0,66744.0,0.025]
[1721545307805,0.16831467,66748.0,66745.0,0.00744598]
[1721545308047,0.16831467,66748.0,66746.0,0.023]
[1721545308274,0.16931467,66748.0,66747.0,0.001]
[1721545308504,0.16931467,66748.0,66746.0,0.023]
[1721545308702,0.16931467,66748.0,66744.0,0.023]
[1721545308905,0.16931467,66748.0,66747.0,0.00743761]
[1721545309116,0.16931467,66748.0,66747.0,0.023]
[1721545309558,0.04846067,66747.0,66744.0,0.024]
[1721545309763,0.04846067,66747.0,66745.0,0.12441587]
[1721545309964,0.04846067,66747.0,66746.0,0.023]
[1721545310408,0.04846067,66747.0,66746.0,0.15393887]
[1721545310812,0.16931467,66748.0,66746.0,0.15393887]
[1721545311083,0.16931467,66748.0,66747.0,0.001]
[1721545311292,0.16831467,66748.0,66747.0,0.001]
[1721545311425,0.16831467,66748.0,66747.0,0.12541587]
[1721545311626,0.16831467,66748.0,66747.0,0.15393471]
[1721545312108,0.24089904,66748.0,66747.0,0.15393471]
[1721545312275,0.24089904,66748.0,66747.0,0.15393801]
[1721545312632,0.24189904,66748.0,66747.0,0.14841753]
[1721545312838,0.24189904,66748.0,66747.0,0.15493658]
[1721545313242,0.16931467,66748.0,66747.0,0.15493658]
[1721545315298,0.001,66748.0,66747.0,0.15493605]
[1721545315501,0.001,66748.0,66747.0,0.60889817]
[1721545315627,0.001,66748.0,66747.0,0.84860917]
[1721545316455,0.001,66748.0,66747.0,0.84561305]
[1721545317679,0.001,66748.0,66747.0,0.77731305]
[1721545317881,0.001,66748.0,66747.0,0.76871305]
[1721545318082,0.001,66748.0,66747.0,0.75421305]
[1721545318286,0.001,66748.0,66747.0,0.39225806]
[1721545318486,0.001,66748.0,66747.0,0.51666389]
[1721545319087,0.001,66748.0,66747.0,0.51448801]
[1721545319294,0.001,66748.0,66747.0,0.15492201]
[1721545319295,0.18890374,66748.0,66747.0,0.15492201]
[1721545319494,0.33450374,66748.0,66747.0,0.15492201]
[1721545319696,0.33450374,66748.0,66747.0,0.14840583]
[1721545320296,0.57421074,66748.0,66747.0,0.14840583]
[1721545320547,0.97270755,66748.0,66747.0,0.00751647]
[1721545320746,1.26711117,66748.0,66747.0,0.00751647]
[1721545320993,1.22241455,66748.0,66747.0,0.001]
[1721545321461,1.22241455,66748.0,66744.0,0.000924]
[1721545321462,0.64775567,66745.0,66744.0,0.000924]
[1721545321732,0.86214548,66745.0,66744.0,0.000924]
[1721545321933,1.14658148,66745.0,66744.0,0.000924]
[1721545322142,1.20186348,66745.0,66744.0,0.000924]
[1721545322360,1.35893862,66745.0,66744.0,0.000924]
[1721545322571,1.78247082,66745.0,66744.0,0.000924]
[1721545322989,1.78247082,66745.0,66744.0,0.001924]
[1721545323190,1.69247082,66745.0,66744.0,0.001924]
[1721545323498,1.69247082,66745.0,66731.0,0.002]
[1721545323499,1.19086067,66738.0,66731.0,0.002]
[1721545323712,1.60079708,66738.0,66731.0,0.002]